bitfinex/quotes_SOLUSD_20240625
["timestamp","ask_amount","ask_price","bid_price","bid_amount"]
[1719294573653,127.33,135.93,135.8,21.3485]
[1719294573654,5.8878,135.88,135.8,21.3485]
[1719294573854,27.33,135.89,135.8,21.3485]
[1719294574152,27.5,135.92,135.8,6.0465]
[1719294574352,100.17,135.91,135.8,6.0465]
[1719294574869,200.17,135.91,135.8,6.0465]
[1719294575177,100.0,135.88,135.8,6.0465]
[1719294577746,27.33,135.89,135.8,6.0465]
[1719294577950,100.0,135.88,135.8,6.0465]
[1719294578568,100.0,135.88,135.79,16.0264]
[1719294579073,100.0,135.9,135.79,16.0264]
[1719294579267,127.33,135.9,135.79,16.0264]
[1719294579477,0.17,135.89,135.79,16.0264]
[1719294579774,100.0,135.87,135.79,16.0264]
[1719294582776,100.0,135.85,135.79,16.0264]
[1719294584073,100.0,135.85,135.7,27.33]
[1719294584074,227.5,135.84,135.71,15.923]
[1719294584274,227.67,135.84,135.71,15.923]
[1719294584979,127.67,135.84,135.71,15.923]
[1719294585162,127.33,135.84,135.72,0.17]
[1719294585360,227.33,135.84,135.72,20.17]
[1719294585671,27.33,135.84,135.72,20.17]
[1719294586253,227.33,135.84,135.72,20.17]
[1719294587377,127.33,135.84,135.72,20.17]
[1719294587562,27.33,135.84,135.73,22.1262]
[1719294587763,100.0,135.86,135.75,15.3584]
[1719294587950,106.0834,135.88,135.76,6.5978]
[1719294588368,106.0834,135.88,135.77,20.0]
[1719294590878,100.0,135.86,135.76,6.5978]
[1719294591100,0.17,135.87,135.76,6.5978]
[1719294591408,206.0834,135.88,135.76,6.5978]
[1719294591567,27.33,135.89,135.77,16.6633]
[1719294591901,27.33,135.89,135.77,16.8333]
[1719294593083,100.0,135.88,135.77,16.8333]
[1719294593886,109.60868798,135.9,135.77,16.8333]
[1719294594073,0.34,135.89,135.78,20.0]
[1719294595405,100.0,135.86,135.77,16.6633]
[1719294597001,100.0,135.84,135.77,16.6633]
[1719294599487,127.33,135.84,135.77,16.6633]
[1719294599692,0.34,135.83,135.77,16.6633]
[1719294600180,127.33,135.84,135.77,16.6633]
[1719294602080,27.33,135.84,135.77,16.6633]
[1719294602282,100.0,135.86,135.77,16.6633]
[1719294604393,27.33,135.87,135.77,16.6633]
[1719294604582,215.44238798,135.9,135.77,16.6633]
[1719294604782,100.0,135.88,135.77,16.6633]
[1719294605399,100.0,135.86,135.77,16.6633]
[1719294609983,127.33,135.86,135.77,16.6633]
[1719294610183,100.0,135.84,135.77,16.6633]
[1719294611106,100.0,135.82,135.77,16.6633]
[1719294611490,100.0,135.84,135.77,16.6633]
[1719294612222,100.0,135.82,135.77,16.6633]
[1719294613387,100.0,135.82,135.76,6.29277421]
[1719294613609,200.0,135.88,135.76,6.29277421]
[1719294613784,100.0,135.88,135.76,6.29277421]
[1719294613989,227.33,135.88,135.76,6.29277421]
[1719294614209,100.0,135.86,135.76,6.29277421]
[1719294614897,227.33,135.88,135.76,6.29277421]
[1719294616386,227.33,135.88,135.77,15.0874]
[1719294616999,236.59868797,135.88,135.77,15.0874]
[1719294617198,242.48628797,135.88,135.77,15.0874]
[1719294617413,27.33,135.85,135.77,15.0874]
[1719294621514,100.0,135.86,135.77,15.0874]
[1719294622693,9.13,135.82,135.77,15.0874]
[1719294623296,100.0,135.84,135.77,15.0874]
[1719294623626,9.13,135.8,135.77,15.0874]
[1719294623925,200.0,135.82,135.72,15.5912]
[1719294624096,100.0,135.82,135.72,15.5912]
[1719294624292,109.13,135.8,135.72,15.5912]
[1719294624497,9.13,135.77,135.72,24.7212]
[1719294624727,127.39,135.82,135.72,15.5912]
[1719294625014,100.0,135.82,135.72,15.5912]
[1719294625331,100.0,135.84,135.72,15.5912]
[1719294625496,27.39,135.83,135.72,15.5912]
[1719294626527,100.0,135.82,135.72,15.5912]
[1719294627601,100.34,135.85,135.73,6.2329]
[1719294627806,27.39,135.84,135.73,6.2329]
[1719294629037,100.0,135.83,135.73,6.2329]
[1719294632733,200.0,135.83,135.73,6.2329]
[1719294632933,0.17,135.82,135.73,6.2329]
[1719294633138,100.0,135.83,135.73,6.2329]
[1719294633437,100.0,135.83,135.74,15.6915]
[1719294635337,100.0,135.82,135.74,15.6915]
[1719294639444,100.0,135.84,135.74,15.6915]
[1719294639750,100.0,135.84,135.75,0.34]
[1719294640331,100.0,135.84,135.74,15.6915]
[1719294643344,100.0,135.84,135.75,0.34]
[1719294643551,100.0,135.84,135.75,0.17]
[1719294644652,9.13,135.81,135.75,9.3]
[1719294645952,8.7697,135.85,135.79,9.13]
[1719294646144,109.13,135.84,135.77,6.1223]
[1719294646459,9.13,135.82,135.77,15.2523]
[1719294646828,100.0,135.84,135.77,6.1223]
[1719294647025,9.13,135.82,135.77,6.1223]
[1719294647243,100.0,135.84,135.77,6.1223]
[1719294647450,9.13,135.82,135.77,6.1223]
[1719294647852,100.0,135.84,135.77,15.2523]
[1719294648033,9.13,135.82,135.77,15.2523]
[1719294648826,9.13,135.83,135.77,15.2523]
[1719294649148,9.13,135.84,135.78,9.13]
[1719294649357,100.0,135.86,135.79,16.5189]
[1719294649651,9.13,135.83,135.79,16.5189]
[1719294651451,20.76152838,135.88,135.79,16.5189]
[1719294651636,20.76152838,135.88,135.79,25.6489]
[1719294651948,9.13,135.84,135.79,25.6489]
[1719294652159,9.13,135.84,135.79,16.5189]
[1719294652725,9.13,135.83,135.79,16.5189]
[1719294653345,115.0183,135.87,135.79,16.5189]
[1719294653545,9.13,135.82,135.79,16.5189]
[1719294653935,100.0,135.85,135.79,16.5189]
[1719294654135,9.13,135.81,135.79,16.5189]
[1719294654766,136.52,135.87,135.79,16.5189]
[1719294654947,9.13,135.82,135.79,16.5189]
[1719294655868,136.52,135.87,135.79,16.5189]
[1719294656066,9.13,135.82,135.79,16.5189]
[1719294656567,142.408,135.87,135.79,16.5189]
[1719294656864,9.13,135.82,135.79,16.5189]
[1719294657172,9.13,135.81,135.79,16.5189]
[1719294658560,100.0,135.85,135.79,16.5189]
[1719294658781,9.13,135.81,135.79,16.5189]
[1719294659689,100.0,135.85,135.79,16.5189]
[1719294660084,9.13,135.81,135.79,16.5189]
[1719294660474,100.0,135.85,135.79,16.5189]
[1719294660673,9.13,135.81,135.79,16.5189]
[1719294660887,9.13,135.82,135.79,16.5189]
[1719294661384,9.13,135.8,135.77,6.1223]
[1719294661563,9.13,135.78,135.76,16.0475]
[1719294661763,9.13,135.77,135.73,22.1396]
[1719294661989,100.0,135.85,135.74,9.13]
[1719294662171,9.13,135.8,135.75,9.13]
[1719294662373,100.0,135.85,135.74,15.0652]
[1719294662574,9.13,135.8,135.74,15.0652]
[1719294662791,120.93152838,135.88,135.73,6.0921]
[1719294662792,136.52,135.87,135.77,15.0652]
[1719294662980,9.13,135.82,135.77,15.0652]
[1719294663698,9.13,135.81,135.77,15.0652]
[1719294664291,9.13,135.8,135.77,15.0652]
[1719294664993,100.0,135.89,135.8,6.0149]
[1719294665192,16.1378,135.9,135.82,15.4987]
[1719294665495,9.13,135.86,135.82,15.4987]
[1719294666180,100.0,135.87,135.82,15.4987]
[1719294666366,9.13,135.83,135.8,6.0149]
[1719294667414,9.13,135.81,135.68,6.5166]
[1719294667700,100.0,135.82,135.73,9.13]
[1719294667897,9.13,135.78,135.72,6.5166]
[1719294668199,215.1612,135.84,135.73,9.13]
[1719294668403,100.0,135.81,135.73,9.13]
[1719294668793,9.13,135.78,135.73,9.13]
[1719294669295,9.13,135.79,135.73,9.13]
[1719294669483,115.1612,135.84,135.74,8.3381]
[1719294669691,9.13,135.79,135.74,8.3381]
[1719294669892,9.13,135.78,135.74,8.3381]
[1719294670275,100.0,135.83,135.74,8.3381]
[1719294670479,9.13,135.78,135.74,8.3381]
[1719294671000,100.0,135.81,135.74,8.3381]
[1719294671001,9.13,135.77,135.74,8.3381]
[1719294671180,9.13,135.77,135.62,6.18494058]
[1719294671181,6.2844,135.69,135.6,0.04369784]
[1719294671387,100.0,135.66,135.6,0.04369784]
[1719294671572,100.0,135.71,135.6,0.04369784]
[1719294671778,200.0,135.75,135.64,9.13]
[1719294671977,9.13,135.69,135.6,0.04369784]
[1719294672181,9.13,135.67,135.6,0.04369784]
[1719294672389,200.0,135.72,135.6,9.17369784]
[1719294672591,100.0,135.7,135.6,9.17369784]
[1719294672793,9.13,135.66,135.61,9.13]
[1719294672975,9.13,135.68,135.63,9.13]
[1719294673181,100.0,135.7,135.6,0.04369784]
[1719294673380,58.61,135.73,135.63,9.13]
[1719294673381,9.13,135.68,135.63,9.13]
[1719294673603,9.13,135.74,135.64,9.13]
[1719294673904,9.13,135.71,135.6,0.04369784]
[1719294674102,236.69,135.73,135.64,9.13]
[1719294674285,9.13,135.7,135.65,9.13]
[1719294674478,9.13,135.71,135.65,9.13]
[1719294674686,100.0,135.75,135.61,27.42]
[1719294674888,100.0,135.72,135.62,20.0]
[1719294675182,100.0,135.72,135.6,0.04369784]
[1719294675387,100.17,135.74,135.62,45.0]
[1719294675588,100.0,135.75,135.62,27.42]
[1719294675906,222.09,135.72,135.6,0.04369784]
[1719294676099,13.495262,135.78,135.6,0.04369784]
[1719294676100,200.0,135.7,135.6,0.04369784]
[1719294676297,222.09,135.7,135.6,0.04369784]
[1719294676520,27.42,135.71,135.6,0.04369784]
[1719294676995,100.0,135.75,135.62,27.42]
[1719294677391,100.0,135.75,135.63,20.17]
[1719294677693,100.0,135.76,135.64,45.0]
[1719294677900,200.0,135.76,135.64,45.0]
[1719294678287,0.34,135.75,135.64,45.0]
[1719294678998,100.0,135.73,135.63,20.0]
[1719294679199,100.0,135.73,135.61,20.0]
[1719294679403,0.17,135.72,135.6,20.04369784]
[1719294679715,100.0,135.71,135.6,20.04369784]
[1719294680023,100.17,135.72,135.6,47.46369784]
[1719294680518,0.17,135.72,135.6,47.46369784]
[1719294680812,0.34,135.72,135.6,47.46369784]
[1719294681215,100.34,135.72,135.61,45.0]
[1719294681515,0.34,135.72,135.61,45.0]
[1719294681814,100.34,135.72,135.61,45.0]
[1719294682210,100.0,135.7,135.61,45.0]
[1719294682422,0.17,135.69,135.61,45.0]
[1719294682616,0.17,135.69,135.6,27.46369784]
[1719294682815,200.0,135.7,135.6,27.46369784]
[1719294683412,100.0,135.7,135.6,27.46369784]
[1719294683627,0.34,135.69,135.6,27.46369784]
[1719294683925,100.17,135.71,135.6,0.04369784]
[1719294684235,100.17,135.71,135.61,27.42]
[1719294684236,0.17,135.71,135.61,27.42]
[1719294684534,100.0,135.73,135.61,27.42]
[1719294684728,100.0,135.74,135.64,27.42]
[1719294685106,100.0,135.75,135.65,45.0]
[1719294686431,100.0,135.74,135.65,45.0]
[1719294687428,22.26,135.75,135.65,45.0]
[1719294687632,0.34,135.74,135.65,45.0]
[1719294688528,0.17,135.74,135.65,45.0]
[1719294688830,0.34,135.75,135.65,45.0]
[1719294689421,200.0,135.74,135.65,45.0]
[1719294689619,0.34,135.73,135.65,45.0]
[1719294690331,222.09,135.76,135.65,45.0]
[1719294690526,0.34,135.75,135.65,45.0]
[1719294692538,0.17,135.75,135.65,45.0]
[1719294694325,200.0,135.78,135.67,27.42]
[1719294694524,100.0,135.78,135.68,51.2849]
[1719294694724,100.0,135.78,135.68,78.7049]
[1719294696741,100.0,135.8,135.68,78.7049]
[1719294697757,100.0,135.8,135.69,0.17]
[1719294697957,100.0,135.79,135.68,78.7049]
[1719294698141,100.0,135.77,135.68,6.2849]
[1719294698346,0.17,135.76,135.68,6.2849]
[1719294698547,0.34,135.76,135.68,6.2849]
[1719294698861,100.0,135.77,135.68,6.2849]
[1719294699157,0.17,135.76,135.68,6.2849]
[1719294700246,0.34,135.76,135.69,45.0]
[1719294700556,100.0,135.77,135.69,45.0]
[1719294701461,100.0,135.75,135.69,45.0]
[1719294703065,100.0,135.75,135.68,6.2849]
[1719294704357,100.0,135.75,135.69,45.0]
[1719294705470,200.0,135.81,135.69,45.0]
[1719294705655,200.0,135.81,135.69,72.42]
[1719294705979,100.0,135.79,135.69,72.42]
[1719294706182,200.0,135.79,135.69,72.42]
[1719294706363,100.0,135.79,135.69,72.42]
[1719294706975,100.0,135.76,135.69,45.0]
[1719294708251,0.34,135.78,135.69,45.0]
[1719294708454,0.17,135.78,135.69,72.42]
[1719294709266,200.0,135.79,135.69,72.42]
[1719294709757,0.17,135.78,135.69,72.42]
[1719294710375,100.0,135.79,135.69,72.42]
[1719294711851,0.34,135.78,135.69,72.42]
[1719294712057,200.0,135.79,135.69,72.42]
[1719294712285,0.34,135.78,135.69,72.42]
[1719294714861,200.0,135.79,135.69,72.42]
[1719294715060,100.0,135.79,135.69,72.42]
[1719294715490,21.24789229,135.78,135.69,72.42]
[1719294716081,21.24789229,135.78,135.7,27.42]
[1719294716289,21.24789229,135.78,135.71,45.0]
[1719294716873,100.0,135.77,135.71,45.0]
[1719294717383,0.34,135.78,135.71,45.0]
[1719294717585,21.59029971,135.78,135.71,45.0]
[1719294718285,21.24913298,135.77,135.71,45.0]
[1719294718471,21.58913298,135.78,135.71,45.0]
[1719294719577,100.0,135.76,135.66,15.4343]
[1719294719785,0.17,135.75,135.66,42.8543]
[1719294720091,100.0,135.76,135.66,42.8543]
[1719294720590,100.0,135.76,135.66,15.4343]
[1719294720760,0.34,135.75,135.67,27.42]
[1719294720961,21.25240939,135.75,135.67,27.42]
[1719294721187,100.0,135.78,135.67,27.42]
[1719294721406,21.42225226,135.77,135.67,27.42]
[1719294721769,21.42225226,135.77,135.7,27.42]
[1719294721993,21.42225226,135.77,135.66,42.8543]
[1719294722180,222.09,135.76,135.64,6.1705]
[1719294722383,100.0,135.74,135.66,27.42]
[1719294723670,0.17,135.75,135.66,27.42]
[1719294723872,21.59402738,135.75,135.66,27.42]
[1719294724701,200.0,135.78,135.67,15.5135]
[1719294724877,105.8928,135.76,135.67,15.5135]
[1719294725078,21.25110004,135.75,135.67,15.5135]
[1719294725278,21.25110004,135.75,135.68,45.0]
[1719294726098,206.2328,135.76,135.68,45.0]
[1719294726284,21.59226222,135.75,135.68,45.0]
[1719294726493,0.34,135.75,135.68,45.0]
[1719294726675,21.59241813,135.75,135.68,45.0]
[1719294727076,100.0,135.74,135.68,45.0]
[1719294730181,100.0,135.76,135.68,45.0]
[1719294730395,21.42228751,135.75,135.68,45.0]
[1719294731694,100.0,135.72,135.68,45.0]
[1719294733000,100.17,135.74,135.68,45.0]
[1719294733178,0.17,135.73,135.68,45.0]
[1719294736190,100.0,135.78,135.69,27.42]
[1719294736394,100.0,135.78,135.7,45.0]
[1719294736795,100.0,135.74,135.67,15.5135]
[1719294736998,205.8936,135.74,135.68,45.0]
[1719294737190,100.0,135.72,135.68,45.0]
[1719294737796,100.0,135.75,135.68,45.0]
[1719294738314,0.17,135.74,135.68,45.0]
[1719294738513,100.0,135.75,135.68,45.0]
[1719294744719,200.0,135.78,135.68,72.42]
[1719294744904,10.88268156,135.69,135.68,72.42]
[1719294745414,10.88027438,135.69,135.68,72.42]
[1719294746603,10.88027438,135.7,135.68,72.42]
[1719294747915,10.88180975,135.7,135.68,72.42]
[1719294748616,10.88180975,135.69,135.68,72.42]
[1719294749317,100.0,135.78,135.68,72.42]
[1719294749520,100.0,135.78,135.69,6.4584]
[1719294749721,100.0,135.78,135.7,45.0]
[1719294753829,200.0,135.8,135.7,45.0]
[1719294754625,9.13,135.79,135.74,9.13]
[1719294754819,200.0,135.8,135.74,9.13]
[1719294754820,200.0,135.8,135.75,45.0]
[1719294755021,9.13,135.79,135.75,45.0]
[1719294756107,15.0215,135.79,135.75,45.0]
[1719294756333,15.0215,135.79,135.73,9.13]
[1719294756527,15.0215,135.79,135.74,45.0]
[1719294756737,9.13,135.78,135.74,45.0]
[1719294758832,9.3,135.79,135.74,45.0]
[1719294759034,0.17,135.78,135.74,45.0]
[1719294759233,9.13,135.79,135.74,45.0]
[1719294759438,200.0,135.8,135.74,54.13]
[1719294759617,209.13,135.8,135.74,54.13]
[1719294760030,215.021,135.8,135.74,54.13]
[1719294760224,9.13,135.79,135.74,54.13]
[1719294760628,205.891,135.8,135.74,54.13]
[1719294760954,205.891,135.8,135.74,67.6376]
[1719294760955,9.13,135.79,135.74,67.6376]
[1719294761251,100.0,135.82,135.77,9.13]
[1719294761425,109.13,135.82,135.77,9.13]
[1719294761629,100.0,135.82,135.77,9.13]
[1719294761829,100.0,135.82,135.78,45.0]
[1719294762238,200.0,135.84,135.78,45.0]
[1719294762439,9.13,135.83,135.78,54.13]
[1719294763037,205.8893,135.84,135.78,54.13]
[1719294763252,100.0,135.85,135.78,45.0]
[1719294763431,115.0184,135.86,135.81,9.13]
[1719294763631,9.13,135.85,135.77,45.0]
[1719294763852,109.13,135.85,135.8,9.13]
[1719294764150,109.13,135.85,135.77,45.0]
[1719294764151,9.13,135.85,135.79,9.13]
[1719294764341,9.13,135.85,135.8,45.0]
[1719294764943,9.13,135.85,135.8,54.13]
[1719294767355,109.13,135.86,135.81,9.13]
[1719294767867,100.0,135.86,135.81,9.13]
[1719294768160,109.13,135.86,135.81,9.13]
[1719294769962,100.0,135.86,135.81,9.13]
[1719294770166,10.88538701,135.82,135.81,9.13]
[1719294770461,10.88538701,135.82,135.81,54.13]
[1719294772565,10.88325722,135.82,135.81,54.13]
[1719294772867,10.8831537,135.82,135.81,54.13]
[1719294773064,109.3,135.87,135.81,54.13]
[1719294773370,10.88308593,135.82,135.81,54.13]
[1719294773857,10.88308593,135.84,135.81,54.13]
[1719294774058,10.88308593,135.84,135.82,45.0]
[1719294774359,10.88308593,135.83,135.82,45.0]
[1719294774760,10.88308593,135.85,135.82,45.0]
[1719294775639,109.3,135.87,135.82,45.0]
[1719294775640,10.88691121,135.84,135.82,45.0]
[1719294776245,10.88691121,135.84,135.8,13.5076]
[1719294776453,10.88691121,135.84,135.81,54.13]
[1719294778871,10.88487883,135.84,135.81,54.13]
[1719294781274,10.88677826,135.84,135.81,54.13]
[1719294781575,109.3,135.87,135.82,9.13]
[1719294781878,109.3,135.87,135.76,6.2673]
[1719294781879,110.88677826,135.84,135.77,13.5076]
[1719294782051,25.90697826,135.82,135.77,13.5076]
[1719294782254,20.01677826,135.82,135.77,22.6376]
[1719294782572,10.88677826,135.82,135.78,9.13]
[1719294783262,10.88677826,135.82,135.79,45.0]
[1719294784571,10.88199884,135.82,135.79,45.0]
[1719294784752,10.88199884,135.83,135.79,45.0]
[1719294784963,10.88199884,135.83,135.81,9.13]
[1719294785160,10.88199884,135.83,135.82,45.0]
[1719294785360,10.88199884,135.83,135.8,9.13]
[1719294785563,10.88199884,135.84,135.81,45.0]
[1719294785856,10.88199884,135.82,135.81,45.0]
[1719294786362,100.0,135.84,135.8,54.13]
[1719294786363,10.88199884,135.83,135.8,54.13]
[1719294787262,10.87210499,135.83,135.8,54.13]
[1719294790286,9.13,135.85,135.8,54.13]
[1719294790583,10.87463023,135.83,135.8,54.13]
[1719294790766,10.87493958,135.83,135.8,54.13]
[1719294791178,10.87493958,135.83,135.8,45.0]
[1719294791385,10.87493958,135.83,135.8,54.13]
[1719294792059,10.87493958,135.81,135.8,45.0]
[1719294792265,109.13,135.83,135.8,45.0]
[1719294792473,10.88543338,135.81,135.8,45.0]
[1719294793491,10.88389643,135.81,135.79,45.0]
[1719294795384,10.88389643,135.81,135.78,45.0]
[1719294796383,10.88389643,135.8,135.78,45.0]
[1719294796561,10.88389643,135.8,135.78,54.13]
[1719294796562,10.88080919,135.8,135.78,54.13]
[1719294796881,10.88124085,135.8,135.78,54.13]
[1719294797777,10.88124085,135.81,135.79,9.13]
[1719294797986,10.88124085,135.81,135.8,54.13]
[1719294798178,10.88124085,135.81,135.78,45.0]
[1719294798483,10.88124085,135.81,135.8,9.13]
[1719294798685,10.88124085,135.81,135.8,54.13]
[1719294799185,10.88124085,135.82,135.8,54.13]
[1719294799377,10.88124085,135.82,135.81,45.0]
[1719294799706,9.13,135.86,135.81,45.0]
[1719294799904,10.87852064,135.82,135.81,45.0]
[1719294800100,0.17,135.85,135.81,45.0]
[1719294800404,10.87632677,135.82,135.81,45.0]
[1719294800596,109.13,135.84,135.81,45.0]
[1719294800903,100.0,135.84,135.81,45.0]
[1719294801108,9.3,135.85,135.8,45.0]
[1719294801308,0.17,135.85,135.8,54.13]
[1719294801805,9.13,135.85,135.8,54.13]
[1719294802305,100.34,135.86,135.8,54.13]
[1719294802604,10.88040127,135.81,135.8,54.13]
[1719294802984,10.8818024,135.81,135.8,54.13]
[1719294804294,9.13,135.85,135.8,54.13]
[1719294804803,100.34,135.86,135.79,9.13]
[1719294804804,100.34,135.84,135.79,9.13]
[1719294804982,109.47,135.84,135.79,9.13]
[1719294805311,9.13,135.85,135.79,9.13]
[1719294805500,9.13,135.85,135.8,9.13]
[1719294805696,0.34,135.86,135.81,9.13]
[1719294805904,0.34,135.85,135.81,54.13]
[1719294806119,0.34,135.85,135.81,45.0]
[1719294806417,21.57828291,135.85,135.81,45.0]
[1719294806815,0.34,135.85,135.81,45.0]
[1719294806981,21.57818007,135.85,135.81,45.0]
[1719294807301,0.17,135.85,135.81,45.0]
[1719294807604,100.0,135.87,135.81,45.0]
[1719294807605,30.70698216,135.86,135.81,45.0]
[1719294807814,0.34,135.86,135.81,45.0]
[1719294808011,130.70697834,135.86,135.81,45.0]
[1719294808187,109.47,135.86,135.81,45.0]
[1719294808707,109.47,135.86,135.81,54.13]
[1719294809592,100.34,135.86,135.82,9.13]
[1719294809816,100.34,135.86,135.81,54.13]
[1719294810005,100.34,135.86,135.82,9.13]
[1719294810208,100.34,135.86,135.81,54.13]
[1719294811582,0.34,135.86,135.81,54.13]
[1719294811783,21.57574694,135.86,135.81,54.13]
[1719294812204,0.34,135.86,135.81,54.13]
[1719294812415,121.57574694,135.86,135.81,54.13]
[1719294812613,100.34,135.86,135.81,54.13]
[1719294812792,100.34,135.86,135.81,45.0]
[1719294812992,100.0,135.84,135.81,45.0]
[1719294813495,109.13,135.84,135.81,45.0]
[1719294813700,109.13,135.84,135.8,45.0]
[1719294814096,9.13,135.84,135.8,45.0]
[1719294815317,100.34,135.86,135.8,54.13]
[1719294815526,109.47,135.86,135.8,54.13]
[1719294816617,109.3,135.86,135.8,54.13]
[1719294816803,109.3,135.86,135.81,9.13]
[1719294816994,9.3,135.86,135.82,45.0]
[1719294817711,0.17,135.86,135.82,45.0]
[1719294818020,9.3,135.86,135.82,45.0]
[1719294818204,9.3,135.86,135.81,45.0]
[1719294819391,9.13,135.85,135.81,45.0]
[1719294819696,9.3,135.86,135.81,45.0]
[1719294822020,9.3,135.86,135.81,54.13]
[1719294822512,9.3,135.86,135.81,45.0]
[1719294823926,109.3,135.86,135.81,45.0]
[1719294824109,9.3,135.85,135.79,9.13]
[1719294824305,30.53768649,135.85,135.79,9.13]
[1719294824511,9.3,135.85,135.79,9.13]
[1719294825211,9.13,135.84,135.79,9.13]
[1719294825425,9.13,135.84,135.8,45.0]
[1719294826112,0.17,135.86,135.8,45.0]
[1719294826421,30.53679659,135.86,135.8,54.13]
[1719294826623,9.3,135.86,135.8,54.13]
[1719294827416,0.17,135.86,135.8,45.0]
[1719294827623,9.3,135.86,135.8,54.13]
[1719294827925,30.53694842,135.86,135.8,54.13]
[1719294828128,9.3,135.86,135.8,54.13]
[1719294828501,30.36829818,135.85,135.8,45.0]
[1719294828710,9.13,135.85,135.8,45.0]
[1719294829915,109.47,135.86,135.8,54.13]
[1719294830703,109.47,135.86,135.8,45.0]
[1719294830904,100.0,135.84,135.8,54.13]
[1719294831134,100.0,135.84,135.8,45.0]
[1719294834232,9.13,135.85,135.8,45.0]
[1719294834406,100.34,135.86,135.8,45.0]
[1719294834607,9.13,135.85,135.8,45.0]
[1719294834810,109.47,135.86,135.8,54.13]
[1719294836327,109.3,135.86,135.8,54.13]
[1719294837637,109.3,135.86,135.8,45.0]
[1719294837817,109.3,135.86,135.8,54.13]
[1719294838430,21.2371002,135.85,135.8,54.13]
[1719294839818,21.2371002,135.85,135.8,45.0]
[1719294840026,21.2371002,135.85,135.8,54.13]
[1719294840538,109.3,135.86,135.8,54.13]
[1719294840702,21.23829811,135.85,135.8,54.13]
[1719294841022,100.0,135.84,135.8,45.0]
[1719294841223,100.0,135.82,135.77,13.5076]
[1719294841515,100.0,135.82,135.78,9.13]
[1719294841723,109.13,135.82,135.77,22.6376]
[1719294842036,100.0,135.82,135.77,22.6376]
[1719294843202,100.0,135.84,135.78,9.13]
[1719294843429,109.13,135.84,135.79,9.13]
[1719294843910,109.13,135.84,135.8,45.0]
[1719294844103,9.13,135.83,135.79,45.0]
[1719294844313,109.13,135.84,135.79,45.0]
[1719294844901,100.0,135.81,135.79,45.0]
[1719294845425,100.0,135.81,135.78,45.0]
[1719294845927,109.13,135.84,135.78,54.13]